bitfinex/quotes_BTCUSD_20230109
["timestamp","ask_amount","ask_price","bid_price","bid_amount"]
[1673293187289,4.32831738,17338.0,17337.0,0.00993369]
[1673293187541,4.69023438,17338.0,17337.0,0.00993369]
[1673293187787,4.34470441,17338.0,17337.0,0.00993369]
[1673293188270,4.32270441,17338.0,17337.0,0.00993369]
[1673293188519,4.32270441,17338.0,17337.0,0.00593369]
[1673293189028,4.40770441,17338.0,17337.0,0.00993369]
[1673293189788,4.04578741,17338.0,17337.0,0.00993369]
[1673293190040,4.40770441,17338.0,17337.0,0.00993369]
[1673293190292,3.99138148,17338.0,17337.0,0.00993369]
[1673293191053,4.35329848,17338.0,17337.0,0.00993369]
[1673293191556,4.35329848,17338.0,17337.0,0.00985526]
[1673293191824,3.99138148,17338.0,17337.0,0.00985526]
[1673293192078,4.35329848,17338.0,17337.0,0.00985526]
[1673293192332,4.00770441,17338.0,17337.0,0.00985526]
[1673293193381,4.3533046,17338.0,17337.0,0.00985526]
[1673293193718,4.00770441,17338.0,17337.0,0.00985526]
[1673293193884,4.35330916,17338.0,17337.0,0.00985526]
[1673293194102,3.64578741,17338.0,17337.0,0.00985526]
[1673293194350,4.00770441,17338.0,17337.0,0.00985526]
[1673293196570,3.64578741,17338.0,17337.0,0.00985526]
[1673293196811,4.00770441,17338.0,17337.0,0.00985526]
[1673293197054,3.64578741,17338.0,17337.0,0.00985526]
[1673293197275,3.84190441,17338.0,17337.0,0.00985526]
[1673293199099,3.40982494,17338.0,17337.0,0.00985526]
[1673293200510,4.34006589,17338.0,17337.0,0.00985526]
[1673293200781,4.91683289,17338.0,17337.0,0.00985526]
[1673293201026,3.87686179,17338.0,17337.0,0.00985526]
[1673293201238,3.40982494,17338.0,17337.0,0.00985526]
[1673293201774,4.50032948,17338.0,17337.0,0.00985526]
[1673293202273,4.13841248,17338.0,17337.0,0.00985526]
[1673293202521,4.50032948,17338.0,17337.0,0.00985526]
[1673293203028,3.98293594,17338.0,17337.0,0.00985526]
[1673293203533,3.40616894,17338.0,17337.0,0.00985526]
[1673293204542,3.98293594,17338.0,17337.0,0.00985526]
[1673293204794,3.62101894,17338.0,17337.0,0.00985526]
[1673293205051,3.98293594,17338.0,17337.0,0.00985526]
[1673293205553,3.62101894,17338.0,17337.0,0.00985526]
[1673293205811,3.98293594,17338.0,17337.0,0.00985526]
[1673293206525,3.62101894,17338.0,17337.0,0.00985526]
[1673293206785,3.98352594,17338.0,17337.0,0.00985526]
[1673293207537,4.41541183,17338.0,17337.0,0.00985526]
[1673293207783,3.40675894,17338.0,17337.0,0.00985526]
[1673293208849,3.98352594,17338.0,17337.0,0.00985526]
[1673293209105,3.40675894,17338.0,17337.0,0.00985526]
[1673293209347,3.83862679,17338.0,17337.0,0.00985526]
[1673293210075,3.40675894,17338.0,17337.0,0.00985526]
[1673293210872,2.89983321,17338.0,17337.0,0.00985526]
[1673293211142,3.24525504,17338.0,17337.0,0.00985526]
[1673293211405,2.67214404,17338.0,17337.0,0.00985526]
[1673293213451,2.3949524,17338.0,17337.0,0.00985526]
[1673293213945,1.52998138,17338.0,17337.0,0.00985526]
[1673293214449,1.78894777,17338.0,17337.0,0.00985526]
[1673293214696,2.3937621,17338.0,17337.0,0.00985526]
[1673293214948,1.78894805,17338.0,17337.0,0.00985526]
[1673293215204,3.06067923,17338.0,17337.0,0.00985526]
[1673293215475,3.06067703,17338.0,17337.0,0.00985526]
[1673293215723,3.42259403,17338.0,17337.0,0.00985526]
[1673293216486,1.52998138,17338.0,17337.0,0.00985526]
[1673293216740,1.35719499,17338.0,17337.0,0.00985526]
[1673293216996,1.78895326,17338.0,17337.0,0.00985526]
[1673293217222,1.35718197,17338.0,17337.0,0.00985526]
[1673293217508,1.33129731,17338.0,17337.0,0.00985526]
[1673293218796,1.3494493,17338.0,17337.0,0.00985526]
[1673293219046,0.27639709,17338.0,17337.0,0.39851829]
[1673293219323,0.10374199,17338.0,17337.0,0.43050329]
[1673293219580,0.27639709,17338.0,17337.0,0.56491829]
[1673293219867,0.10374199,17338.0,17337.0,2.93126146]
[1673293220110,0.10374199,17338.0,17337.0,2.96324646]
[1673293220387,0.10374199,17338.0,17337.0,2.38644546]
[1673293220613,0.10374199,17338.0,17337.0,1.75050529]
[1673293220897,0.10374199,17338.0,17337.0,2.21352058]
[1673293221373,0.10374199,17338.0,17337.0,2.38635071]
[1673293221690,0.10374199,17338.0,17337.0,2.21352058]
[1673293222668,0.10374199,17338.0,17337.0,1.75050529]
[1673293223661,0.10374199,17338.0,17337.0,0.04184026]
[1673293223912,0.27639709,17338.0,17337.0,0.00985526]
[1673293224673,1.77446914,17338.0,17337.0,0.00985526]
[1673293224944,3.28591987,17338.0,17337.0,0.00985526]
[1673293225683,1.94723587,17338.0,17337.0,0.00985526]
[1673293225950,1.77432749,17338.0,17337.0,0.00985526]
[1673293226970,2.35109449,17338.0,17337.0,0.00985526]
[1673293227214,2.69651632,17338.0,17337.0,0.00985526]
[1673293227474,2.52400287,17338.0,17337.0,0.00985526]
[1673293228247,2.35112,17338.0,17337.0,0.00985526]
[1673293229011,2.69654183,17338.0,17337.0,0.00985526]
[1673293229233,2.52400287,17338.0,17337.0,0.00985526]
[1673293229453,2.88591987,17338.0,17337.0,0.00985526]
[1673293230888,3.05872294,17338.0,17337.0,0.00985526]
[1673293231624,2.88570645,17338.0,17337.0,0.00985526]
[1673293231938,2.52378945,17338.0,17337.0,0.00985526]
[1673293232453,2.88570645,17338.0,17337.0,0.00985526]
[1673293234061,3.05872294,17338.0,17337.0,0.00985526]
[1673293234829,3.32025436,17338.0,17337.0,0.00985526]
[1673293235049,2.69680594,17338.0,17337.0,0.00985526]
[1673293235294,3.31772136,17338.0,17337.0,0.00985526]
[1673293235798,2.69680594,17338.0,17337.0,0.00985526]
[1673293236314,3.31745188,17338.0,17337.0,0.00985526]
[1673293236582,2.52377661,17338.0,17337.0,0.00985526]
[1673293236830,1.94700961,17338.0,17337.0,0.00985526]
[1673293237089,2.34700961,17338.0,17337.0,0.00985526]
[1673293237605,2.92377661,17338.0,17337.0,0.00985526]
[1673293237871,3.28569361,17338.0,17337.0,0.00985526]
[1673293238129,4.57934687,17338.0,17337.0,0.00985526]
[1673293238641,3.45872294,17338.0,17337.0,0.00985526]
[1673293238904,3.09680594,17338.0,17337.0,0.00975725]
[1673293239494,4.57936734,17338.0,17337.0,0.00975725]
[1673293239899,4.23394551,17338.0,17337.0,0.00975725]
[1673293240897,4.57882033,17338.0,17337.0,0.00975725]
[1673293242644,5.15558733,17338.0,17337.0,0.00975725]
[1673293244076,4.29188855,17338.0,17337.0,0.00975725]
[1673293244327,3.861834,17338.0,17337.0,0.00975725]
[1673293244857,3.71682072,17338.0,17337.0,0.00975725]
[1673293245108,3.45817593,17338.0,17337.0,0.00975725]
[1673293245366,3.71478666,17338.0,17337.0,0.00975725]
[1673293245856,4.57833474,17338.0,17337.0,0.00975725]
[1673293246099,3.71478666,17338.0,17337.0,0.00975725]
[1673293246357,3.45817593,17338.0,17337.0,0.00975725]
[1673293246605,5.27342071,17338.0,17337.0,0.00975725]
[1673293247413,5.43872071,17338.0,17337.0,0.00975725]
[1673293247673,5.00696244,17338.0,17337.0,0.00975725]
[1673293249980,5.43796737,17338.0,17337.0,0.00975725]
[1673293250228,4.97476327,17338.0,17337.0,0.00975725]
[1673293250496,5.43796737,17338.0,17337.0,0.00975725]
[1673293251994,4.97476327,17338.0,17337.0,0.00975725]
[1673293252240,5.31949904,17338.0,17337.0,0.00975725]
[1673293252512,4.97476327,17338.0,17337.0,0.00975725]
[1673293253799,5.43796737,17338.0,17337.0,0.00975725]
[1673293256610,4.97476327,17338.0,17337.0,0.00975725]
[1673293258341,5.43796737,17338.0,17337.0,0.00975725]
[1673293259909,5.00696244,17338.0,17337.0,0.00975725]
[1673293260417,5.43779937,17338.0,17337.0,0.00975725]
[1673293261480,5.00696244,17338.0,17337.0,0.00975725]
[1673293263786,5.52435598,17338.0,17337.0,0.00967311]
[1673293264341,5.82881851,17338.0,17337.0,0.00967311]
[1673293264604,5.72963074,17338.0,17337.0,0.00571744]
[1673293265350,5.82874999,17338.0,17337.0,0.00571744]
[1673293265608,6.19218746,17338.0,17337.0,0.00571744]
[1673293272333,6.09215805,17338.0,17337.0,0.00571744]
[1673293273341,6.19213451,17338.0,17337.0,0.00571744]
[1673293273581,6.60896065,17338.0,17337.0,0.00571744]
[1673293273874,6.09168858,17338.0,17337.0,0.00571744]
[1673293274129,6.97107964,17338.0,17337.0,0.00571744]
[1673293275370,6.77161586,17338.0,17337.0,0.00571744]
[1673293275613,6.671094,17338.0,17337.0,0.00571744]
[1673293279346,6.971094,17338.0,17337.0,0.00571744]
[1673293280122,6.901094,17338.0,17337.0,0.00571744]
[1673293280344,7.4828913,17338.0,17337.0,0.00571744]
[1673293281153,6.90350024,17338.0,17337.0,0.00571744]
[1673293281408,6.32170294,17338.0,17337.0,0.00571744]
[1673293281658,6.90350024,17338.0,17337.0,0.00571744]
[1673293281915,6.32170294,17338.0,17337.0,0.00571744]
[1673293282413,6.15640294,17338.0,17337.0,0.00571744]
[1673293283177,7.26905099,17338.0,17337.0,0.00571744]
[1673293283435,7.26905099,17338.0,17337.0,0.00231915]
[1673293283704,6.61520114,17338.0,17337.0,0.00231915]
[1673293283987,7.37554881,17338.0,17337.0,0.00231915]
[1673293284235,7.37554881,17338.0,17337.0,0.00113775]
[1673293284236,7.78543685,17338.0,17337.0,0.00113775]
[1673293284488,7.14252245,17338.0,17336.0,0.00308598]
[1673293284743,7.14252245,17338.0,17336.0,0.00247614]
[1673293284744,3.70737619,17337.0,17336.0,0.00247614]
[1673293285006,6.18609276,17337.0,17336.0,0.00247614]
[1673293285272,6.18609276,17337.0,17334.0,0.00930793]
[1673293285273,0.4,17336.0,17334.0,0.00930793]
[1673293285539,3.45093617,17335.0,17334.0,0.00930793]
[1673293285798,4.73476006,17335.0,17334.0,0.00930793]
[1673293286055,5.89101812,17335.0,17334.0,0.00930793]
[1673293286336,5.89101812,17335.0,17334.0,0.00916014]
[1673293286625,5.89101812,17335.0,17334.0,0.00316014]
[1673293286861,5.43062706,17335.0,17334.0,0.00916014]
[1673293287108,5.37272003,17335.0,17334.0,0.00916014]
[1673293287358,5.52711037,17335.0,17334.0,0.00916014]
[1673293287880,5.52711037,17335.0,17334.0,0.17306403]
[1673293287881,4.76551825,17335.0,17334.0,0.17306403]
[1673293288135,3.96811183,17335.0,17334.0,0.0029892]
[1673293288391,3.93710941,17335.0,17334.0,0.0029892]
[1673293288657,4.39842079,17335.0,17334.0,0.0029892]
[1673293288903,4.63744743,17335.0,17334.0,0.0029892]
[1673293289162,5.06799549,17335.0,17334.0,0.0029892]
[1673293289658,4.52806601,17335.0,17334.0,0.0029892]
[1673293289918,2.54502037,17335.0,17334.0,0.0029892]
[1673293290176,2.90693737,17335.0,17334.0,0.0029892]
[1673293290536,2.54502037,17335.0,17334.0,0.0029892]
[1673293290720,2.90693737,17335.0,17334.0,0.0029892]
[1673293290979,2.54500855,17335.0,17334.0,0.0029892]
[1673293291255,2.91542555,17335.0,17334.0,0.0029892]
[1673293291760,2.55350855,17335.0,17334.0,0.0029892]
[1673293292009,2.91542555,17335.0,17334.0,0.0029892]
[1673293293011,2.55350855,17335.0,17334.0,0.0029892]
[1673293293273,2.91542555,17335.0,17334.0,0.0029892]
[1673293293783,2.55350855,17335.0,17334.0,0.0029892]
[1673293294041,2.91542555,17335.0,17334.0,0.0029892]
[1673293294562,2.3813193,17335.0,17334.0,0.0029892]
[1673293294822,1.8044523,17335.0,17334.0,0.0029892]
[1673293295336,0.55801575,17335.0,17334.0,0.0029892]
[1673293295588,0.55801575,17335.0,17334.0,0.1693892]
[1673293295589,0.1275,17335.0,17334.0,0.1693892]
[1673293296377,0.1807187,17335.0,17334.0,0.1664]
[1673293296648,0.1857187,17335.0,17334.0,0.2054]
[1673293296934,0.1807187,17335.0,17334.0,0.1664]
[1673293297158,0.1857187,17335.0,17334.0,0.2054]
[1673293298171,0.44401575,17335.0,17334.0,0.2054]
[1673293298668,1.02088275,17335.0,17334.0,0.2054]
[1673293299380,0.92088275,17335.0,17334.0,0.2054]
[1673293300930,0.6625857,17335.0,17334.0,0.2054]
[1673293301180,0.005,17335.0,17334.0,0.6054]
[1673293301442,0.0135,17335.0,17334.0,0.637402]
[1673293301952,0.0135,17335.0,17334.0,0.237402]
[1673293302187,0.0135,17335.0,17334.0,0.2054]
[1673293302930,0.590367,17335.0,17334.0,0.2054]
[1673293303200,0.84866405,17335.0,17334.0,0.2054]
[1673293303706,0.84866405,17335.0,17334.0,0.039]
[1673293303707,1.42553105,17335.0,17334.0,0.039]
[1673293303965,3.07213742,17335.0,17334.0,0.039]
[1673293304220,3.55470223,17335.0,17334.0,0.039]
[1673293304538,4.7385273,17335.0,17334.0,0.039]
[1673293304757,4.7385273,17335.0,17333.0,0.01571542]
[1673293305011,1.79827465,17334.0,17333.0,0.01571542]
[1673293305253,3.52897465,17334.0,17333.0,0.01571542]
[1673293305515,3.16705765,17334.0,17333.0,0.01571542]
[1673293305833,3.52897465,17334.0,17333.0,0.01571542]
[1673293306024,3.17205765,17334.0,17333.0,0.05771542]
[1673293306316,3.53397465,17334.0,17333.0,0.05771542]
[1673293306568,3.17205765,17334.0,17333.0,0.05771542]
[1673293306807,3.53397465,17334.0,17333.0,0.05771542]
[1673293307065,3.10417554,17334.0,17333.0,0.01571542]
[1673293307323,2.77625854,17334.0,17333.0,0.01971542]
[1673293308816,3.13817554,17334.0,17333.0,0.01971542]
[1673293309063,3.56356548,17334.0,17333.0,0.01971542]
[1673293309552,3.20165581,17334.0,17333.0,0.01971542]
[1673293309795,1.21784336,17334.0,17333.0,0.01971542]
[1673293310036,1.04557635,17334.0,17333.0,0.01971542]
[1673293310295,2.77627635,17334.0,17333.0,0.01971542]
[1673293311050,3.31046036,17334.0,17333.0,0.01971542]
[1673293311304,2.94854336,17334.0,17333.0,0.01971542]
[1673293311557,3.5635901,17334.0,17333.0,0.01971542]
[1673293311802,3.2016731,17334.0,17333.0,0.01971542]
[1673293312045,3.5635901,17334.0,17333.0,0.01971542]
[1673293312297,3.2016731,17334.0,17333.0,0.01971542]
[1673293312537,2.94854336,17334.0,17333.0,0.01971542]
[1673293312785,2.77630121,17334.0,17333.0,0.01971542]
[1673293313040,2.77619007,17334.0,17333.0,0.01971542]
[1673293319261,2.94843222,17334.0,17333.0,0.01971542]
[1673293319734,3.20333511,17334.0,17333.0,0.01971542]
[1673293319994,3.56525211,17334.0,17333.0,0.01971542]
[1673293320486,3.20333511,17334.0,17333.0,0.01971542]
[1673293321248,3.56525211,17334.0,17333.0,0.01971542]
[1673293321516,4.42877148,17334.0,17333.0,0.01971542]
[1673293321770,4.06419848,17334.0,17333.0,0.01971542]
[1673293322024,4.42611548,17334.0,17333.0,0.01971542]
[1673293322282,3.20067911,17334.0,17333.0,0.01971542]
[1673293322531,4.42611596,17334.0,17333.0,0.01971542]
[1673293322780,4.08151891,17334.0,17333.0,0.01971542]
[1673293323034,3.71960191,17334.0,17333.0,0.01971542]
[1673293323281,4.08159722,17334.0,17333.0,0.01971542]
[1673293324321,3.71968022,17334.0,17333.0,0.01971542]
[1673293324574,4.08159722,17334.0,17333.0,0.01971542]
[1673293326340,4.06441383,17334.0,17333.0,0.01971542]
[1673293327343,3.20089398,17334.0,17333.0,0.01971542]
[1673293327595,4.06449793,17334.0,17333.0,0.01971542]
[1673293327843,3.71976432,17334.0,17333.0,0.01971542]
[1673293328094,4.06461284,17334.0,17333.0,0.01971542]
[1673293328612,3.71976432,17334.0,17333.0,0.01971542]
[1673293329136,4.08168132,17334.0,17333.0,0.01971542]
[1673293329397,3.71976432,17334.0,17333.0,0.01971542]
[1673293329889,4.08168132,17334.0,17333.0,0.01971542]
[1673293330126,3.71976432,17334.0,17333.0,0.01971542]
[1673293330372,4.06462057,17334.0,17333.0,0.01971542]
[1673293330629,3.20101662,17334.0,17333.0,0.01971542]
[1673293331129,4.06463919,17334.0,17333.0,0.01971542]
[1673293331391,4.0646566,17334.0,17333.0,0.01971542]
[1673293332418,4.08171735,17334.0,17333.0,0.01971542]
[1673293333153,3.71980035,17334.0,17333.0,0.01971542]
[1673293334886,4.08171735,17334.0,17333.0,0.01971542]
[1673293335663,3.65089273,17334.0,17333.0,0.01971542]
[1673293335920,3.81227158,17334.0,17333.0,0.01971542]
[1673293336175,4.17418858,17334.0,17333.0,0.01971542]
[1673293336671,4.27247422,17334.0,17333.0,0.01971542]
[1673293336922,5.15117597,17334.0,17333.0,0.01971542]
[1673293337427,4.69097333,17334.0,17333.0,0.01971542]
[1673293337678,5.15117597,17334.0,17333.0,0.01971542]
[1673293337937,4.69097333,17334.0,17333.0,0.01971542]
[1673293338183,4.17418858,17334.0,17333.0,0.01971542]
[1673293338430,4.69097333,17334.0,17333.0,0.01971542]
[1673293338674,5.15117597,17334.0,17333.0,0.01203704]
[1673293339456,5.72398247,17334.0,17333.0,0.01203704]
[1673293340474,5.15117597,17334.0,17333.0,0.01203704]
[1673293340969,5.31757597,17334.0,17333.0,0.01203704]
[1673293341488,5.73072507,17334.0,17333.0,0.01203704]
[1673293341748,5.31841901,17334.0,17333.0,0.01203704]
[1673293342009,5.28441901,17334.0,17333.0,0.00803704]
[1673293342263,5.28441901,17334.0,17333.0,0.01203704]
[1673293342264,5.87654563,17334.0,17333.0,0.01203704]
[1673293342511,6.28877304,17334.0,17333.0,0.01203704]
[1673293342762,5.77114525,17334.0,17333.0,0.01203704]
[1673293343280,5.87645096,17334.0,17333.0,0.01203704]
[1673293343529,5.87661406,17334.0,17333.0,0.01203704]
[1673293344034,5.77280578,17334.0,17333.0,0.01203704]
[1673293344291,6.65411566,17334.0,17333.0,0.01203704]
[1673293344541,6.07280578,17334.0,17333.0,0.01203704]
[1673293344791,6.65411566,17334.0,17333.0,0.01203704]
[1673293345315,6.35411566,17334.0,17333.0,0.01203704]
[1673293345582,6.07280578,17334.0,17333.0,0.01203704]
[1673293346334,6.65411566,17334.0,17333.0,0.01203704]
[1673293347602,6.71202269,17334.0,17333.0,0.01203704]
[1673293348148,6.13071281,17334.0,17333.0,0.01203704]
[1673293349365,5.83071281,17334.0,17333.0,0.01203704]
[1673293349869,5.32958619,17334.0,17333.0,0.01203704]
[1673293350127,5.84689692,17334.0,17333.0,0.01203704]
[1673293350378,5.62627093,17334.0,17333.0,0.01203704]
[1673293352605,5.5683639,17334.0,17333.0,0.01203704]
[1673293357352,5.7340639,17334.0,17333.0,0.01203704]
[1673293357602,6.31345496,17334.0,17333.0,0.01203704]
[1673293358868,6.31345496,17334.0,17333.0,0.00035612]
[1673293360366,6.31345496,17334.0,17333.0,0.00014028]
[1673293360622,6.89476484,17334.0,17333.0,0.00014028]
[1673293365740,6.31345496,17334.0,17333.0,0.00014028]
[1673293366771,6.01345496,17334.0,17333.0,0.00014028]
[1673293368034,6.53059069,17334.0,17333.0,0.00014028]
[1673293368287,6.01345496,17334.0,17333.0,0.00014028]
[1673293368535,6.31345496,17334.0,17333.0,0.00014028]
[1673293369027,6.01345496,17334.0,17333.0,0.00014028]
[1673293369277,6.53959683,17334.0,17333.0,0.00014028]
[1673293369528,6.12003917,17334.0,17333.0,0.00014028]
[1673293369780,6.02254672,17334.0,17333.0,0.00014028]
[1673293371564,6.32254672,17334.0,17333.0,0.00014028]
[1673293372593,6.7374566,17334.0,17333.0,0.00014028]
[1673293373365,5.85614672,17334.0,17333.0,0.00014028]
[1673293374371,6.15614672,17334.0,17333.0,0.00014028]
[1673293374594,6.7374566,17334.0,17333.0,0.00014028]
[1673293374832,6.4374566,17334.0,17333.0,0.00014028]
[1673293375081,6.7374566,17334.0,17333.0,0.00014028]
[1673293375327,6.4374566,17334.0,17333.0,0.00014028]
[1673293375585,6.7374566,17334.0,17333.0,0.00014028]
[1673293375828,6.15614672,17334.0,17333.0,5.409e-05]
[1673293378844,1.10682062,17333.0,17332.0,0.00182405]
[1673293379093,6.66813747,17333.0,17332.0,0.00182405]
[1673293380609,6.68813747,17333.0,17332.0,0.00682405]
[1673293381852,6.85393747,17333.0,17332.0,0.00682405]
[1673293390195,6.85393747,17333.0,17332.0,0.00260422]
[1673293390449,6.27164063,17333.0,17332.0,0.00260422]
[1673293396180,6.72767471,17333.0,17332.0,0.00260422]
[1673293396430,6.72767471,17333.0,17332.0,0.00058964]
[1673293397212,7.30588013,17333.0,17332.0,0.00058964]
[1673293398987,0.9742596,17332.0,17330.0,0.01546016]
[1673293399238,4.82038847,17331.0,17330.0,0.01546016]
[1673293399487,5.82597117,17331.0,17330.0,0.01546016]
[1673293400016,6.40791531,17331.0,17330.0,0.01546016]
[1673293400263,6.42391531,17331.0,17330.0,0.02446016]
[1673293400510,6.42391531,17331.0,17330.0,0.01369378]
[1673293401036,6.42391531,17331.0,17330.0,0.00469378]
[1673293401037,6.40791531,17331.0,17330.0,0.00469378]
[1673293401281,6.40791531,17331.0,17330.0,0.00569378]
[1673293401282,6.54291531,17331.0,17330.0,0.00569378]
[1673293404319,6.30289705,17331.0,17330.0,0.00569378]
[1673293404572,5.94485994,17331.0,17330.0,0.00569378]
[1673293404820,5.94485994,17331.0,17330.0,0.00131849]
[1673293405081,7.16576711,17331.0,17330.0,4.9e-07]
[1673293405330,7.16576711,17331.0,17328.0,0.01773344]
[1673293405331,6.53880761,17331.0,17328.0,0.01773344]
[1673293405586,0.1663,17329.0,17328.0,0.01773344]
[1673293405847,4.72373051,17329.0,17328.0,0.01773344]
[1673293406096,5.14339495,17329.0,17328.0,0.01773344]
[1673293406854,5.14339495,17329.0,17328.0,0.01873344]
[1673293407109,5.86157719,17329.0,17328.0,0.01873344]
[1673293407356,6.53784512,17329.0,17328.0,0.01773344]
[1673293407612,7.081225,17329.0,17328.0,0.01873344]
[1673293407868,6.62484512,17329.0,17328.0,0.01873344]
[1673293408121,6.5636647,17329.0,17328.0,0.01873344]
[1673293410188,6.5636647,17329.0,17328.0,0.01779244]
[1673293410437,6.5636647,17329.0,17328.0,0.00486255]
[1673293410438,7.1449155,17329.0,17328.0,0.00486255]
[1673293411443,6.5636647,17329.0,17328.0,0.00486255]
[1673293412965,7.1449155,17329.0,17328.0,0.00486255]
[1673293413212,6.5636647,17329.0,17328.0,0.00486255]
[1673293418920,0.4,17328.0,17327.0,0.00158246]
[1673293419174,6.09929149,17328.0,17327.0,0.00158246]
[1673293419438,6.09929149,17328.0,17327.0,0.00118246]
[1673293420482,6.11329149,17328.0,17327.0,0.00236537]
[1673293422025,6.09929149,17328.0,17327.0,0.00036537]
[1673293422376,6.18629149,17328.0,17327.0,0.00136537]
[1673293422531,6.09929149,17328.0,17327.0,0.00036537]
[1673293422777,6.23429149,17328.0,17327.0,0.00136537]
[1673293424029,6.17300428,17328.0,17327.0,0.00136537]
[1673293425535,0.4,17327.0,17323.0,0.63220754]
[1673293425774,0.43023348,17325.0,17323.0,0.17241732]
[1673293426027,1.162966,17324.0,17323.0,0.17241732]
[1673293426761,1.162966,17324.0,17323.0,0.17841732]
[1673293427000,1.162966,17324.0,17323.0,0.17241732]
[1673293427243,1.33505939,17324.0,17323.0,0.17841732]
[1673293427507,1.34505939,17324.0,17323.0,0.17841732]
[1673293429255,1.60319948,17324.0,17323.0,0.17841732]
[1673293431507,2.18043248,17324.0,17323.0,0.17841732]
[1673293431767,1.34505939,17324.0,17323.0,0.17841732]
[1673293433077,1.34505939,17324.0,17323.0,0.17781732]
[1673293433595,1.60319948,17324.0,17323.0,0.17781732]
[1673293435178,2.18043248,17324.0,17323.0,0.17781732]
[1673293436480,2.35252587,17324.0,17323.0,0.17781732]
[1673293436992,1.77529287,17324.0,17323.0,0.17781732]
[1673293437525,1.94738626,17324.0,17323.0,0.17781732]
[1673293438279,1.77558081,17324.0,17323.0,0.17781732]
[1673293439060,1.60369841,17324.0,17323.0,0.17781732]
[1673293439573,1.77558081,17324.0,17323.0,0.17781732]
[1673293440092,1.60378434,17324.0,17323.0,0.17781732]
[1673293440876,1.77558081,17324.0,17323.0,0.17781732]
[1673293441125,1.60379155,17324.0,17323.0,0.17781732]
[1673293441379,1.77558081,17324.0,17323.0,0.17781732]
[1673293441649,1.60383448,17324.0,17323.0,0.17781732]
[1673293442125,1.02660148,17324.0,17323.0,0.17781732]
[1673293442638,1.3707929,17324.0,17323.0,0.17781732]
[1673293442954,1.19834781,17324.0,17323.0,0.17781732]
[1673293443152,1.37079933,17324.0,17323.0,0.17781732]
[1673293443403,1.19834781,17324.0,17323.0,0.17781732]
[1673293444164,1.19834781,17324.0,17323.0,0.17721732]
[1673293444958,0.44095995,17324.0,17323.0,0.34112121]
[1673293445219,0.44095995,17324.0,17323.0,0.76216833]
[1673293445615,0.01,17324.0,17323.0,1.33943533]
[1673293445838,0.01,17324.0,17323.0,2.19755322]
[1673293446508,0.01,17324.0,17323.0,3.11405035]
[1673293446758,0.01,17324.0,17323.0,3.93093911]
[1673293446978,0.01,17324.0,17323.0,3.11405035]
[1673293448189,0.01,17324.0,17323.0,2.94122022]
[1673293449150,0.01,17324.0,17323.0,3.51848722]
[1673293450350,0.01,17324.0,17323.0,3.49716536]
[1673293450809,0.01,17324.0,17323.0,3.66999549]
[1673293451270,0.01,17324.0,17323.0,3.49716536]
[1673293451515,0.00984953,17324.0,17323.0,3.49716536]
[1673293452198,0.00984953,17324.0,17323.0,3.66999549]
[1673293452434,0.00984953,17324.0,17323.0,3.49716536]
[1673293453153,0.00984953,17324.0,17323.0,2.91989836]
[1673293456786,0.00984953,17324.0,17323.0,2.91975972]
[1673293462772,0.00984953,17324.0,17323.0,2.58825972]
[1673293466644,0.00984953,17324.0,17323.0,3.16552672]
[1673293468061,0.00984953,17324.0,17323.0,3.33835685]
[1673293468514,0.00984953,17324.0,17323.0,3.16552672]
[1673293469229,0.00984953,17324.0,17323.0,2.58825972]
[1673293469482,0.00984953,17324.0,17323.0,3.16552672]
[1673293469741,0.00984953,17324.0,17323.0,3.15442672]
[1673293470262,0.00984953,17324.0,17323.0,3.32725685]
[1673293470514,0.00015,17326.0,17324.0,0.4408258]
[1673293470766,0.00015,17326.0,17325.0,2.40671278]
[1673293471024,0.00015,17326.0,17325.0,9.93876678]
[1673293471301,0.00015,17326.0,17325.0,9.76600729]
[1673293471551,0.00015,17326.0,17325.0,10.01600729]
[1673293471817,0.5226885,17329.0,17325.0,10.01600729]
[1673293472064,0.5226885,17329.0,17327.0,0.166]
[1673293472321,0.5226885,17329.0,17328.0,0.03204]
[1673293472598,0.5226885,17329.0,17328.0,0.43204]
[1673293472830,0.5226885,17329.0,17328.0,0.4]
[1673293473091,0.5326885,17329.0,17327.0,1.15372524]
[1673293473350,0.5226885,17329.0,17328.0,0.65]
[1673293473632,0.01,17329.0,17328.0,0.727]
[1673293473882,0.01,17329.0,17328.0,0.47782758]
[1673293474119,0.01,17329.0,17328.0,1.05492758]
[1673293474389,0.01,17329.0,17328.0,2.04812801]
[1673293474645,0.01,17329.0,17328.0,2.46452801]
[1673293475409,0.01,17329.0,17328.0,1.88742801]
[1673293476183,0.01,17329.0,17328.0,1.85456443]
[1673293476539,0.01,17329.0,17328.0,1.27746443]
[1673293477189,0.01,17329.0,17328.0,1.30950043]
[1673293477953,0.01,17329.0,17328.0,1.27746443]
[1673293478458,0.01,17329.0,17328.0,1.30950043]
[1673293478723,0.01,17329.0,17328.0,1.27746443]
[1673293478994,0.01,17329.0,17328.0,1.88660043]
[1673293480261,0.01,17329.0,17328.0,1.88680467]
[1673293480754,0.01,17329.0,17328.0,2.46390467]
[1673293483264,0.01,17329.0,17328.0,3.2104345]
[1673293483508,0.01,17329.0,17328.0,3.3768345]
[1673293483756,0.01,17329.0,17328.0,3.9539345]
[1673293486017,0.01,17329.0,17328.0,3.49595467]
[1673293486282,0.01,17329.0,17328.0,3.66543047]
[1673293486537,0.01,17329.0,17328.0,3.20740467]
[1673293487281,0.01,17329.0,17328.0,2.63030467]
[1673293488552,0.01,17329.0,17328.0,2.46390467]
[1673293489124,0.01,17329.0,17328.0,1.85476867]
[1673293489352,0.01,17329.0,17328.0,0.359036]
[1673293489353,0.19139,17329.0,17328.0,0.359036]
[1673293489599,0.19139,17329.0,17328.0,0.327]
[1673293489600,0.86705583,17329.0,17328.0,0.327]
[1673293489865,1.03958775,17329.0,17328.0,0.327]
[1673293490140,1.61665475,17329.0,17328.0,0.327]
[1673293490393,3.00258123,17329.0,17328.0,0.327]
[1673293490654,2.89909226,17329.0,17328.0,0.327]
[1673293491163,2.44088278,17329.0,17328.0,0.327]
[1673293491425,2.44088278,17329.0,17328.0,0.32692563]
[1673293491792,2.43088278,17329.0,17328.0,0.25]
[1673293491971,2.17245475,17329.0,17328.0,0.25]
[1673293492474,2.17245475,17329.0,17328.0,0.321]
[1673293492732,2.74952175,17329.0,17328.0,0.25]
[1673293493002,2.74952175,17329.0,17328.0,0.286]
[1673293493260,3.33058875,17329.0,17328.0,0.286]
[1673293493532,3.69250575,17329.0,17328.0,0.286]
[1673293494541,2.75352175,17329.0,17328.0,0.286]
[1673293494543,3.33058875,17329.0,17328.0,0.286]
[1673293494788,3.69250575,17329.0,17328.0,0.286]
[1673293495028,3.33058875,17329.0,17328.0,0.286]
[1673293495266,3.95093378,17329.0,17328.0,0.286]
[1673293495486,3.58901678,17329.0,17328.0,0.286]
[1673293496042,3.59751678,17329.0,17328.0,0.286]
[1673293496763,3.19751678,17329.0,17328.0,0.286]